[Event "Caplin Hastings Masters 2023-24"]
[Site "Hastings"]
[Date "2024.01.04"]
[Round "8.3"]
[White "Ghasi, Ameet K"]
[Black "Royal, Shreyas"]
[Result "1/2-1/2"]
[ECO "D78"]
[WhiteElo "2509"]
[BlackElo "2438"]
[Annotator "TA"]
[PlyCount "113"]
[EventDate "2023.12.18"]
[EventType "swiss"]
[EventCountry "ENG"]
[SourceTitle "playchess.com"]
[Source "ChessBase"]
[SourceQuality "1"]
[TimeControl "40/6000+30:3000+30"]

{[%evp 15,113,-18,-11,-21,-18,-104,-109,-89,-91,-69,-10,-90,-57,-41,-42,-45,-52,-58,-46,-45,10,-65,-70,-90,-79,-89,-107,-109,-75,-110,-102,-89,-107,-113,-95,-82,-58,-62,-65,-71,-68,-68,-68,-68,-76,-62,-72,-76,-39,-85,-65,-70,-73,-62,-62,-62,-69,-71,-60,-69,-34,-35,-24,-119,-113,-201,-45,-45,-45,-45,-45,-45,-45,-39,-39,-45,-45,-45,-16,-16,-16,-16,-8,-8,-8,-8,-8,-8,-8,-8,-8,-8,-8,-8,8,8,8,8,8,8]} 1. Nf3 {[%emt 0:01:32]} d5 {[%emt 0:00:07]} 2. g3 {[%emt 0:00:08]} g6 {[%emt 0:00:05]} 3. Bg2 {[%emt 0:02:30]} Bg7 {[%emt 0:00:06]} 4. d4 {[%emt 0:00:10]} Nf6 {[%emt 0:00:08]} 5. O-O {[%emt 0:00:55]} O-O {[%emt 0:00:05]} 6. c4 {[%emt 0:02:03]} c6 {[%emt 0:00:06]} 7. Nc3 {[%emt 0:00:05]} dxc4 {[%emt 0:00:47]} 8. e4 $1 {[%emt 0:00:44][%mdl 4] is more profitable than 8.Ne5 at the moment.} b5 {[%emt 0:00:06][%cal Bb7b5,Bb5b4][%mdl 32]} 9. Qe2 {[%emt 0:00:32] D78: Fianchetto Grünfeld: 6 0-0 c6.} a5 {[%emt 0:00:23] [#]} 10. a4 $146 {[%emt 0:12:58]} (10. Rd1 $11 {remains equal.}) ({Predecessor:} 10. Rd1 b4 11. Na4 Ba6 12. Ne5 c3 13. Qc2 cxb2 14. Bxb2 Nfd7 15. Ng4 Bb5 16. Nc5 {1-0 Matlakov,M (2674)-Kramnik,V (2753) AI Cup Div 3 L rapid 2023 (2.2)}) 10... b4 $17 {[%emt 0:03:00]} 11. Nd1 {[%emt 0:00:27] Black is better.} Ba6 {[%emt 0:04:43][%cal Oe7e5]} 12. Re1 {[%emt 0:01:52]} Ne8 {[%emt 0:07:03]} (12... e5 $15 13. dxe5 c3) 13. Ne3 {[%emt 0:16:41]} (13. e5 $1 $11) 13... Nd7 {[%emt 0:05:55]} (13... Bxd4 $6 14. Nxc4 c5 15. e5 $11) 14. e5 {[%emt 0:10:30]} (14. Nxc4 Nd6 15. b3 Nb6 $17) 14... Nb6 {[%emt 0:07:55]} 15. h4 {[%emt 0:06:38][%cal Oh4h5]} Nc7 {[%emt 0:10:40]} 16. h5 {[%emt 0:08:12]} Qd7 {[%emt 0:07:30]} (16... gxh5 17. Nf5 c3 18. Qc2 $16) (16... Ne6 $5 17. Rd1 Ra7 $17) 17. Qc2 {[%emt 0:02:48]} Rfd8 {[%emt 0:12:21]} (17... gxh5 $2 18. Ng5 f5 19. exf6 Rxf6 20. Qxh7+ (20. Nxh7 Qxd4 21. Nxf6+ Qxf6 $16) 20... Kf8 21. Qxh5 $18) ({Black should try} 17... Rad8 $15) 18. Rd1 {[%emt 0:11:19]} ({White should play} 18. Qe4 $11) 18... Ne6 $15 {[%emt 0:05:25]} (18... gxh5 $2 19. Ng5 Kf8 20. Qxh7 $18) 19. Qe4 {[%emt 0:00:08]} c3 {[%emt 0:07:01]} (19... gxh5 $6 20. Qf5 $11) 20. bxc3 {[%emt 0:02:19] [#]} Be2 $1 {[%emt 0:02:19]} ({Of course not} 20... gxh5 21. cxb4 axb4 22. Nf5 $14) ({Much weaker is} 20... bxc3 $6 21. hxg6 hxg6 22. Bh3 $11 (22. Qc2 Rab8 $15)) 21. Re1 {[%emt 0:00:34]} Bxf3 {[%emt 0:00:07]} 22. Qxf3 {[%emt 0:00:25]} bxc3 {[%emt 0:00:06]} 23. Nc2 {[%emt 0:00:12]} Nd5 {[%emt 0:02:59]} (23... Nxd4 $2 24. Nxd4 Qxd4 25. Be3 $18) 24. Rb1 {[%emt 0:14:18]} Rac8 {[%emt 0:10:54]} 25. Qe2 {[%emt 0:05:59]} Nb4 {[%emt 0:04:44][%mdl 64] [#] Deflection} 26. Nxb4 {[%emt 0:01:24]} Nxd4 {[%emt 0:00:06]} 27. Qe4 {[%emt 0:00:50] Nc2 is the strong threat.} axb4 {[%emt 0:01:13]} 28. Rxb4 {[%emt 0:00:48]} c5 {[%emt 0:03:43]} 29. Rc4 {[%emt 0:01:19]} c2 {[%emt 0:00:05]} 30. hxg6 {[%emt 0:00:19]} hxg6 {[%emt 0:00:08]} 31. e6 {[%emt 0:03:51][%mdl 64] Deflection} Nxe6 {[%emt 0:03:37]} (31... Qe8 {is interesting.} 32. exf7+ Qxf7 33. Rc3 Rf8) 32. Rxc2 {[%emt 0:00:23]} (32. Qxc2 $15 Bd4 33. a5) 32... Nd4 {[%emt 0:00:39]} 33. Ra2 {[%emt 0:00:05]} e5 {[%emt 0:00:21]} 34. a5 {[%emt 0:03:16]} f5 {[%emt 0:00:39]} 35. Qb7 {[%emt 0:00:11]} e4 {[%emt 0:00:09]} (35... Rc7 {keeps more tension.} 36. Qb6 Kh7 37. a6 e4) 36. Qxd7 {[%emt 0:00:27]} Rxd7 {[%emt 0:00:04]} 37. Be3 {[%emt 0:00:12]} Ra8 {[%emt 0:03:59]} (37... c4 {looks sharper.} 38. a6 c3 39. Kf1 c2) 38. Rb1 {[%emt 0:01:49]} Rda7 {[%emt 0:00:36]} 39. Bd2 {[%emt 0:00:02]} (39. Bf1 $1 $11) 39... c4 $17 {[%emt 0:00:50]} 40. Be1 {[%emt 0:00:56]} (40. Kh1 $17) 40... Nb3 $2 {[%emt 0:05:37]} (40... Rc7 $19 {Hoping for ...c3.} 41. Bc3 Ne2+ {[%mdl 64] Discovered Attack} 42. Rxe2 Bxc3) 41. Bf1 $15 {[%emt 0:22:19]} Nxa5 {[%emt 0:00:18]} 42. Bxa5 {[%emt 0:00:24]} Rxa5 {[%emt 0:00:05]} (42... c3 {with more complications.} 43. Rb5 Kh7 44. g4 Rxa5 45. Rbxa5 c2) 43. Bxc4+ {[%emt 0:00:09]} Kh7 {[%emt 0:00:17]} 44. Rxa5 {[%emt 0:00:09]} Rxa5 {[%emt 0:00:04][%mdl 4096] Endgame KRB-KRB} 45. Rb6 {[%emt 0:02:01]} Bd4 {[%emt 0:05:13]} 46. Rd6 {[%emt 0:04:12]} Be5 {[%emt 0:00:16]} 47. Ra6 {[%emt 0:12:14] The position is equal.} Rxa6 {[%emt 0:00:05]} 48. Bxa6 $11 {[%emt 0:00:04] KB-KB} g5 {[%emt 0:00:04]} 49. Bc8 {[%emt 0:00:17]} Kg6 {[%emt 0:00:12]} 50. g4 {[%emt 0:00:05]} fxg4 {[%emt 0:00:04]} 51. Bxg4 {[%emt 0:00:04]} Bd4 {[%emt 0:00:05]} 52. Kg2 {[%emt 0:00:12]} Kf6 {[%emt 0:00:03]} 53. Bc8 {[%emt 0:00:10]} Ke5 {[%emt 0:00:05]} 54. Kg3 {[%emt 0:00:11]} Bxf2+ {[%emt 0:00:04]} 55. Kxf2 {[%emt 0:00:05]} e3+ {[%emt 0:00:03]} 56. Kxe3 {[%emt 0:00:06]} g4 {[%emt 0:00:02]} 57. Bxg4 {[%emt 0:00:06] An interesting game.   Weighted Error Value: White=0.14 (very precise) /Black=0.15 (very precise)} 1/2-1/2

[Event "Caplin Hastings Masters 2023-24"]
[Site "Hastings"]
[Date "2024.01.04"]
[Round "8.4"]
[White "Derakhshani, Borna"]
[Black "Edouard, Romain"]
[Result "1/2-1/2"]
[ECO "B32"]
[WhiteElo "2380"]
[BlackElo "2527"]
[Annotator "TA"]
[PlyCount "90"]
[EventDate "2023.12.18"]
[EventType "swiss"]
[EventCountry "ENG"]
[SourceTitle "playchess.com"]
[Source "ChessBase"]
[SourceQuality "1"]
[TimeControl "40/6000+30:3000+30"]

{[%evp 10,90,33,34,29,20,25,26,27,19,20,0,2,-4,0,-20,-12,-50,-14,-14,0,-29,-44,-36,-23,-96,-93,-81,-69,-120,-31,-35,-38,-40,-39,-77,-77,-48,-18,-50,-62,-58,-61,-46,-56,-52,-50,-50,-45,-56,-55,-65,-65,-62,-35,-52,-52,-64,-45,-71,-52,-71,-52,-135,-18,-18,-18,-18,-18,-19,0,0,0,0,0,0,0,0,0,0,0,0,0]} 1. e4 {[%emt 0:00:19]} c5 {[%emt 0:01:55]} 2. Nf3 {[%emt 0:00:05][%cal Bg1f3,Bf3d4,Bd4b5][%mdl 32]} Nc6 {[%emt 0:00:03]} 3. d4 {[%emt 0:00:22]} cxd4 {[%emt 0:00:06]} 4. Nxd4 {[%emt 0:00:04]} e5 {[%emt 0:00:22]} 5. Nb5 {[%emt 0:00:22]} d6 {[%emt 0:00:02]} 6. c4 {[%emt 0:01:39]} Nf6 {[%emt 0:01:30] 6...g6 gains popularity. B32: Sicilian: Löwenthal and Kalashnikov Variations.} 7. Bd3 {[%emt 0:00:29]} a6 {[%emt 0:00:35]} 8. N5c3 {[%emt 0:00:04]} g6 {[%emt 0:00:05] [#] White has an edge.} 9. Nd5 $146 {[%emt 0:01:33]} ({Predecessor:} 9. O-O Bg7 10. Nd5 Nxd5 11. cxd5 Ne7 12. Nc3 O-O 13. Be3 Bd7 14. Qb3 Rb8 15. Bb6 Qe8 {1-0 Markantonaki,H (2171)-Anemogianni,S (1104) GRE-chT 50th 2023 (6.5)}) 9... Nxd5 {[%emt 0:00:49]} 10. exd5 {[%emt 0:03:16]} Nd4 {[%emt 0:01:38]} 11. Na3 {[%emt 0:00:42]} Bg7 {[%emt 0:00:38][%cal Oe5e4]} 12. Nc2 {[%emt 0:00:20]} Nf5 {[%emt 0:02:26]} 13. Ne3 {[%emt 0:02:02]} Ne7 {[%emt 0:00:20]} 14. O-O {[%emt 0:00:32]} O-O {[%emt 0:01:16]} 15. f4 {[%emt 0:05:17]} exf4 {[%emt 0:04:40]} 16. Rxf4 {[%emt 0:00:34]} f5 {[%emt 0:00:06][%cal Bf7f5,Bf5f4][%mdl 32]} 17. Kh1 {[%emt 0:20:03]} (17. Nc2 $11 {remains equal.}) 17... g5 $17 {[%emt 0:04:20]} 18. Rf1 {[%emt 0:00:44] [#]} f4 $1 {[%emt 0:00:18]} 19. Qh5 {[%emt 0:06:39]} Ng6 {[%emt 0:01:23]} (19... h6 $17 20. Nd1 Qe8 21. Qxe8 Rxe8) 20. Ng4 $15 {[%emt 0:04:56]} Bxg4 {[%emt 0:03:10]} 21. Qxg4 {[%emt 0:00:05]} Ne5 {[%emt 0:00:03][%csl LRd3,LRg4]} 22. Qh3 {[%emt 0:08:24]} Nxd3 {[%emt 0:02:44]} 23. Qxd3 {[%emt 0:00:06]} Qf6 {[%emt 0:00:02]} 24. Bd2 {[%emt 0:04:08]} Qxb2 {[%emt 0:03:42]} 25. Rab1 {[%emt 0:00:08]} Qd4 {[%emt 0:00:04]} 26. Qxd4 {[%emt 0:00:25]} Bxd4 {[%emt 0:00:03]} 27. Rxb7 {[%emt 0:00:29][%cal Oh2h4]} Rac8 {[%emt 0:27:08]} 28. Bb4 {[%emt 0:06:35]} Rxc4 {[%emt 0:01:26]} 29. Bxd6 {[%emt 0:00:06]} Rf5 {[%emt 0:05:44]} 30. Rb4 {[%emt 0:14:46]} Rxb4 {[%emt 0:02:20]} 31. Bxb4 {[%emt 0:01:00][%mdl 4096] Endgame KRB-KRB} Kf7 {[%emt 0:02:06]} 32. Rd1 {[%emt 0:02:14]} Bb6 {[%emt 0:00:35]} (32... Rxd5 $2 33. Bc3 $18) 33. h3 {[%emt 0:05:53]} Re5 {[%emt 0:11:56]} 34. Bc3 {[%emt 0:11:18]} Re2 {[%emt 0:18:40]} (34... Re3 $5 {[%cal Re3c3]} 35. Bh8 Re2 $17) 35. Rb1 {[%emt 0:02:19]} Bc5 {[%emt 0:00:26]} 36. a4 {[%emt 0:04:15]} ({White should play} 36. Rb7+ $15 Re7 37. Rxe7+ Kxe7 38. Kh2) 36... Ke7 {[%emt 0:13:25]} (36... h5 $17 {And now ...g4 would win.} 37. Bb4 Be3) 37. Bb4 $1 $11 {[%emt 0:03:07] The position is equal.} Kd6 {[%emt 0:00:01]} 38. Bxc5+ {[%emt 0:00:07]} Kxc5 {[%emt 0:00:01] KR-KR} 39. Rb7 {[%emt 0:01:50]} h5 {[%emt 0:03:14][%cal Og5g4] [#] Strongly threatening ...g4!} 40. Rg7 {[%emt 0:00:04]} Re5 {[%emt 0:00:17]} 41. d6 $1 {[%emt 0:50:25]} Kc6 {[%emt 0:08:28]} 42. Kg1 {[%emt 0:00:00]} a5 {[%emt 0:04:06]} 43. d7 {[%emt 0:00:00]} Kc7 {[%emt 0:00:02]} 44. Kf2 {[%emt 0:00:00]} h4 {[%emt 0:00:21]} 45. Kf1 {[%emt 0:00:00]} Kd8 {[%emt 0:00:38] Weighted Error Value: White=0.13 (very precise) /Black=0.15 (very precise)} 1/2-1/2

[Event "Caplin Hastings Masters 2023-24"]
[Site "Hastings"]
[Date "2024.01.04"]
[Round "8.5"]
[White "Laurent-Paoli, Pierre"]
[Black "Petrov, Martin"]
[Result "1/2-1/2"]
[ECO "E16"]
[WhiteElo "2524"]
[BlackElo "2501"]
[Annotator "TA"]
[PlyCount "116"]
[EventDate "2023.12.18"]
[EventType "swiss"]
[EventCountry "ENG"]
[SourceTitle "playchess.com"]
[Source "ChessBase"]
[SourceQuality "1"]
[TimeControl "40/6000+30:3000+30"]

{[%evp 13,116,4,8,14,18,20,27,6,6,7,12,7,10,10,12,0,16,16,12,14,15,5,12,5,11,6,20,16,11,12,17,20,31,23,23,0,20,20,20,17,20,20,38,0,16,0,0,0,0,0,0,0,0,0,4,0,0,-8,-8,-66,-66,-48,-41,-66,-66,-66,-66,-66,-66,-66,-43,-43,-43,-43,-30,-30,-30,-30,-30,-30,-30,-30,-30,-30,-30,-30,-30,-30,-30,-30,-30,-30,-30,-30,0,-30,-26,-26,-26,-26,0,-26,0,-26,0]} 1. d4 {[%emt 0:04:05]} Nf6 {[%emt 0:00:08]} 2. c4 {[%emt 0:00:24]} e6 {[%emt 0:00:06]} 3. Nf3 {[%emt 0:00:21]} b6 {[%emt 0:00:07]} 4. g3 {[%emt 0:00:45]} Bb4+ {[%emt 0:00:07]} 5. Bd2 {[%emt 0:00:13]} Be7 {[%emt 0:00:05]} 6. Nc3 {[%emt 0:00:39]} Bb7 {[%emt 0:00:05]} 7. Bg2 {[%emt 0:00:16]} c6 {[%emt 0:00:07]} 8. Bf4 {[%emt 0:00:22] E16: Queen's Indian: 4 g3 Bb7 5 Bg2 Bb4+.} d5 {[%emt 0:02:31]} 9. cxd5 {[%emt 0:00:06]} Nxd5 {[%emt 0:03:30]} 10. Nxd5 {[%emt 0:00:06] White has an edge.} cxd5 {[%emt 0:12:03]} 11. h4 {[%emt 0:00:29]} Nc6 {[%emt 0:01:38]} 12. O-O {[%emt 0:07:43]} Rc8 {[%emt 0:03:17]} 13. Qd3 {[%emt 0:17:56]} h6 {[%emt 0:05:47]} 14. Rfc1 {[%emt 0:03:40]} O-O {[%emt 0:09:57] [#]} 15. Bh3 $146 {[%emt 0:02:30]} ({Predecessor:} 15. a3 Bd6 16. e3 Qd7 17. Bxd6 Qxd6 18. b4 Rc7 19. Rc3 Rfc8 20. Rac1 Ne7 21. b5 Rxc3 22. Rxc3 Rxc3 23. Qxc3 Qd8 24. a4 {½-½ Vecek,M (2304)-Stepanov,K (2356) EU-ch 2017 sf09 email}) 15... Bd6 {[%emt 0:08:18]} 16. e3 {[%emt 0:06:35]} Qe7 {[%emt 0:03:20]} 17. a3 {[%emt 0:11:25]} Rc7 {[%emt 0:03:43]} 18. Rc3 {[%emt 0:01:38]} Rfc8 {[%emt 0:00:58]} 19. Rac1 {[%emt 0:00:31]} Nb8 {[%emt 0:11:28]} 20. Qd2 {[%emt 0:12:26]} Rxc3 {[%emt 0:00:21]} 21. Rxc3 {[%emt 0:00:10]} Rxc3 {[%emt 0:00:04]} 22. Qxc3 {[%emt 0:00:20]} Nd7 {[%emt 0:00:08]} 23. Bxd6 {[%emt 0:07:11]} Qxd6 {[%emt 0:00:09]} 24. Ne5 {[%emt 0:00:23]} Nf8 {[%emt 0:04:30]} 25. Bf1 {[%emt 0:01:50]} f6 {[%emt 0:00:11]} 26. Nd3 {[%emt 0:01:22]} g5 {[%emt 0:00:55]} 27. hxg5 {[%emt 0:02:10]} hxg5 {[%emt 0:00:25]} 28. Bh3 {[%emt 0:01:16]} Qc6 {[%emt 0:01:14]} 29. Qxc6 {[%emt 0:00:56]} Bxc6 $11 {[%emt 0:00:05][%mdl 4096] Endgame KBN-KBN} 30. f4 {[%emt 0:00:41]} Bb5 {[%emt 0:02:58]} 31. Ne1 {[%emt 0:00:11]} Kf7 {[%emt 0:05:48]} 32. Kf2 {[%emt 0:01:02]} Nh7 {[%emt 0:02:32]} 33. Nf3 {[%emt 0:02:20]} Bd3 {[%emt 0:00:01]} 34. Nd2 {[%emt 0:04:37]} Ke7 {[%emt 0:03:11]} 35. Bg2 {[%emt 0:01:23]} g4 {[%emt 0:02:28]} 36. Bf1 {[%emt 0:03:48]} (36. e4 $11) 36... Bxf1 $15 {[%emt 0:00:21]} 37. Kxf1 {[%emt 0:00:03] KN-KN} Kd6 {[%emt 0:04:17]} 38. Ke2 {[%emt 0:00:06]} f5 {[%emt 0:06:47]} 39. Kd3 {[%emt 0:00:19]} Kc6 {[%emt 0:00:05]} 40. Kc3 {[%emt 0:01:20]} Kb5 {[%emt 0:00:16]} 41. Kb3 {[%emt 0:50:28]} Nf6 {[%emt 0:51:08]} 42. a4+ {[%emt 0:00:33]} Kc6 {[%emt 0:00:47]} 43. Kc3 {[%emt 0:01:29]} Ne8 {[%emt 0:02:17]} (43... Nh5 $5 44. Nf1 $8 Nf6 $15) 44. b4 {[%emt 0:01:24]} Nd6 {[%emt 0:00:05]} 45. Kd3 {[%emt 0:02:40]} Kc7 {[%emt 0:03:05]} 46. Kc3 {[%emt 0:00:19]} Nb7 {[%emt 0:00:21]} 47. Nb3 {[%emt 0:01:14]} Nd8 {[%emt 0:00:55]} 48. Nd2 {[%emt 0:00:55]} Nc6 {[%emt 0:01:41]} 49. Nb3 {[%emt 0:00:32]} Ne7 {[%emt 0:00:08]} 50. Nd2 {[%emt 0:00:04]} Ng8 {[%emt 0:00:06]} 51. Kb3 {[%emt 0:00:39]} Nf6 {[%emt 0:00:12]} 52. Kc3 {[%emt 0:00:16]} Nh5 {[%emt 0:01:23]} 53. Nf1 {[%emt 0:00:05]} Nf6 {[%emt 0:00:03]} 54. Nd2 {[%emt 0:00:02]} b5 {[%emt 0:02:49]} 55. a5 {[%emt 0:00:32]} (55. axb5 $2 {loses.} Kb6 56. Kb3 Nh5 $19) 55... Nh5 {[%emt 0:00:06]} 56. Nf1 {[%emt 0:00:04]} Nf6 {[%emt 0:00:02]} 57. Nd2 {[%emt 0:00:03]} Nh5 {[%emt 0:00:04]} 58. Nf1 {[%emt 0:00:03]} Nf6 {[%emt 0:00:04] Weighted Error Value: White=0.05 (flawless) /Black=0.05 (flawless)} 1/2-1/2

[Event "Caplin Hastings Masters 2023-24"]
[Site "Hastings"]
[Date "2024.01.04"]
[Round "8.6"]
[White "Sengupta, Deep"]
[Black "Gallagher, Joseph G."]
[Result "1-0"]
[ECO "B90"]
[WhiteElo "2501"]
[BlackElo "2427"]
[Annotator "TA"]
[PlyCount "65"]
[EventDate "2023.12.18"]
[EventType "swiss"]
[EventCountry "ENG"]
[SourceTitle "playchess.com"]
[Source "ChessBase"]
[SourceQuality "1"]
[TimeControl "40/6000+30:3000+30"]

{[%evp 11,65,-6,-23,-34,-13,-6,2,15,9,0,0,-9,0,-2,0,-22,0,0,0,0,0,-16,-15,-26,-18,-36,0,-51,-46,-27,83,78,96,79,72,95,89,97,91,97,122,57,132,139,130,116,124,130,132,133,222,231,295,270,29996,29997]} 1. e4 {[%emt 0:00:06]} c5 {[%emt 0:00:30]} 2. Nf3 {[%emt 0:00:11]} d6 {[%emt 0:00:41]} 3. d4 {[%emt 0:00:14]} cxd4 {[%emt 0:00:16]} 4. Nxd4 {[%emt 0:00:02]} Nf6 {[%emt 0:00:05]} 5. Nc3 {[%emt 0:00:08]} a6 {[%emt 0:00:40]} 6. Rg1 {[%emt 0:00:13]} b5 {[%emt 0:06:22]} 7. g4 {[%emt 0:00:54][%cal Bg2g4,Bg4g5][%mdl 32] 7.a4 deserves study. B90: Sicilian Najdorf: Unusual White 6th moves, 6 Be3 Ng4 and 6 Be3 e5.} Bb7 {[%emt 0:00:42]} 8. Bg2 {[%emt 0:00:41]} e6 {[%emt 0:05:18]} (8... e5 {keeps more tension.} 9. Nf5 b4 10. g5 g6) 9. g5 {[%emt 0:09:34] The position is equal.} Nfd7 {[%emt 0:00:07]} 10. f4 {[%emt 0:01:16] is the legacy move (10.Be3).} b4 {[%emt 0:18:57]} 11. Nce2 {[%emt 0:00:40]} Nc5 {[%emt 0:00:42]} 12. Ng3 {[%emt 0:02:05]} Nbd7 {[%emt 0:01:25][%cal Bb8d7,Bd7b6,Bb6d5][%mdl 32]} 13. Qe2 {[%emt 0:28:35]} Qc7 {[%emt 0:06:04]} 14. Be3 {[%emt 0:06:50] [#]} Na4 $146 {[%emt 0:03:03]} ({Predecessor:} 14... Rc8 15. f5 e5 16. Nb3 Na4 17. O-O-O a5 18. Kb1 Nxb2 19. Kxb2 Qc3+ 20. Kb1 a4 {1-0 Kotronia,A (1769)-Tsarouha,M GRE-chT 34th 2005 (6)}) 15. O-O-O {[%emt 0:23:55]} Ndb6 $1 {[%emt 0:05:17]} 16. e5 {[%emt 0:00:10]} Bxg2 {[%emt 0:07:04]} (16... d5 $5 {[%cal Rb6c4]} 17. f5 Nxb2 18. Nxe6 (18. Kxb2 $2 {too greedy.} Qc3+ 19. Kb1 Nc4 $19) 18... fxe6 19. Bxb6 (19. Kxb2 $2 {loses.} Na4+ 20. Kc1 b3 $19) 19... Qxb6 20. Kxb2 g6 $11) 17. Rxg2 {[%emt 0:10:54][%cal Bg1g2,Bg2e2,Be2e5][%mdl 32] Black must now prevent exd6.} (17. Qxg2 {simplifies} d5 18. Nb3 Nc4 19. Bd4) 17... dxe5 {[%emt 0:04:17]} 18. fxe5 {[%emt 0:06:26][%cal Og5g6] And now g6! would win.} Qxe5 {[%emt 0:04:44]} 19. Qf3 {[%emt 0:03:05]} ({Better is} 19. Bg1 $11 Bd6 20. Ne4) 19... Nd5 $15 {[%emt 0:09:47]} 20. Re2 {[%emt 0:00:42] aiming for Nh5.} Bc5 {[%emt 0:10:36] [#]} (20... Be7 $11) 21. Nh5 $1 $16 {[%emt 0:03:54]} O-O {[%emt 0:23:11] ...Qc7 is the strong threat.} 22. Bf4 {[%emt 0:00:34]} Qxd4 {[%emt 0:00:29]} 23. Rxd4 {[%emt 0:00:06]} Bxd4 {[%emt 0:00:03]} 24. Be5 {[%emt 0:00:23] Dancing on a razor blade.} Bxe5 {[%emt 0:00:19]} 25. Rxe5 {[%emt 0:00:02]} Rfd8 {[%emt 0:01:02]} 26. Qg4 {[%emt 0:04:36] White is more active.} ({White should try} 26. Rxd5 $16 Rxd5 27. Nf4) 26... Nab6 {[%emt 0:00:37] [#]} (26... Nc5 $14) 27. Nf6+ $1 {[%emt 0:04:20][%mdl 512]} Kh8 {[%emt 0:00:15]} (27... gxf6 $2 28. gxf6+ Kf8 29. Rxe6 fxe6 30. Qg7+ Ke8 31. f7+ (31. Qxh7 $2 {is the wrong capture.} Rac8 $19) 31... Kd7 32. f8=Q+ Kc6 33. Qf3 $18) 28. Nxd5 {[%emt 0:00:33]} Nxd5 {[%emt 0:00:05]} 29. h4 {[%emt 0:00:06][%cal Bh2h4,Bh4h5,Bh5h6][%mdl 32]} a5 {[%emt 0:01:09]} 30. h5 {[%emt 0:00:04][%mdl 1024] White has strong compensation.} Ne7 {[%emt 0:00:26]} (30... h6 $16 {is a better defense.}) 31. h6 {[%emt 0:00:34]} Ng6 {[%emt 0:01:10]} 32. Rc5 {[%emt 0:00:11]} Ra7 $2 {[%emt 0:00:23] [#]} (32... Kg8 $18 33. Qe4 Re8) 33. Qd4 $3 {[%emt 0:00:56][%mdl 576] Back Rank. Beautiful play by Sengupta!   Weighted Error Value: White=0.11 (very precise) /Black=0.40} 1-0